bitfinex/quotes_SOLUSD_20260214
["timestamp","ask_amount","ask_price","bid_price","bid_amount"]
[1771096699264,12.54591132,87.821,87.791,1.06193567]
[1771096700160,11.38705747,87.819,87.791,1.06193567]
[1771096700347,1.15911318,87.818,87.791,1.06193567]
[1771096701861,1.15911318,87.825,87.8,2.90879391]
[1771096702054,12.54501554,87.828,87.801,1.09114628]
[1771096703053,11.38590236,87.828,87.801,1.09114628]
[1771096703368,1.15911318,87.84,87.82,2.90879391]
[1771096703769,1.15911318,87.84,87.817,1.09326412]
[1771096703960,1.15911318,87.84,87.811,1.09326412]
[1771096704544,11.38355758,87.846,87.785,47.36]
[1771096704545,1.15911318,87.829,87.79,2.90879391]
[1771096704775,1.15911318,87.829,87.754,47.0]
[1771096704776,1.15911318,87.819,87.78,2.90879391]
[1771096705160,1.15911318,87.819,87.781,11.39198687]
[1771096705464,1.15911318,87.819,87.782,1.09326412]
[1771096706679,1.15911318,87.829,87.791,1.09326412]
[1771096706849,1.15911318,87.828,87.801,1.09326412]
[1771096707973,1.15911318,87.826,87.801,1.09326412]
[1771096708360,5.36086188,87.846,87.801,1.09326412]
[1771096708361,11.38551479,87.831,87.802,1.09326412]
[1771096708554,11.38461148,87.838,87.811,1.09326412]
[1771096709060,1.15911318,87.837,87.79,2.90879391]
[1771096709270,1.15911318,87.829,87.79,2.90879391]
[1771096709467,1.15911318,87.829,87.79,4.00205803]
[1771096710076,1.15911318,87.827,87.791,11.39068925]
[1771096710858,1.15911318,87.827,87.786,58.39122116]
[1771096711183,1.15911318,87.827,87.79,2.90879391]
[1771096711363,1.15911318,87.827,87.8,2.90879391]
[1771096712677,1.15911318,87.825,87.797,1.09326412]
[1771096713358,11.38560914,87.831,87.801,1.09326412]
[1771096714381,11.3849832,87.835,87.802,11.3892622]
[1771096714575,11.3849832,87.835,87.803,1.09326412]
[1771096714882,1.15911318,87.836,87.811,1.09326412]
[1771096715087,11.3836482,87.846,87.821,1.09326412]
[1771096715380,11.38306232,87.85,87.821,1.09326412]
[1771096716379,1.15911318,87.856,87.821,1.09326412]
[1771096717480,1.15911318,87.856,87.83,2.90879391]
[1771096717690,1.15911318,87.856,87.831,1.09326412]
[1771096718063,1.15911318,87.856,87.811,47.38]
[1771096718064,1.15911318,87.856,87.814,1.09326412]
[1771096718265,1.15911318,87.856,87.82,2.90879391]
[1771096718476,1.15911318,87.854,87.82,2.90879391]
[1771096718980,1.15911318,87.854,87.82,4.00205803]
[1771096719186,1.15911318,87.854,87.821,1.09326412]
[1771096720479,1.15911318,87.852,87.821,1.09326412]
[1771096721691,1.30864872,87.85,87.821,1.09326412]
[1771096721865,1.30864872,87.862,87.831,1.26535649]
[1771096722689,1.30864872,87.862,87.841,1.26535649]
[1771096722984,11.38082985,87.868,87.841,1.26535649]
[1771096723993,1.26807289,87.867,87.841,1.26535649]
[1771096724201,1.26807289,87.867,87.84,2.90879391]
[1771096724577,1.26807289,87.867,87.84,4.14066445]
[1771096725773,0.2,87.87,87.823,39.85288591]
[1771096725774,1.46807289,87.87,87.85,2.90879391]
[1771096726295,1.46807289,87.87,87.842,1.23187054]
[1771096726672,11.3805779,87.869,87.842,1.23187054]
[1771096726869,11.3805779,87.869,87.823,28.46634708]
[1771096727069,1.26807289,87.868,87.83,2.90879391]
[1771096727390,1.26807289,87.868,87.831,1.23187054]
[1771096727580,1.26807289,87.868,87.84,2.90879391]
[1771096727893,1.26807289,87.868,87.841,1.23187054]
[1771096728396,1.26807289,87.868,87.85,2.90879391]
[1771096728582,1.26807289,87.868,87.841,1.23187054]
[1771096728784,11.38083694,87.867,87.841,1.23187054]
[1771096729911,1.26807289,87.888,87.861,1.13375538]
[1771096730080,1.26807289,87.895,87.87,2.90879391]
[1771096730393,1.26807289,87.905,87.88,4.04927674]
[1771096730578,0.2,87.91,87.891,0.94048283]
[1771096730776,1.26807289,87.919,87.9,2.90879391]
[1771096731174,0.2,87.92,87.9,2.90879391]
[1771096731393,0.2,87.92,87.91,2.90879391]
[1771096731777,15.9,87.949,87.91,2.90879391]
[1771096731778,1.26807289,87.941,87.91,15.03109898]
[1771096731978,1.26807289,87.941,87.911,0.74713302]
[1771096732500,1.26807289,87.939,87.9,2.90879391]
[1771096732690,1.26807289,87.939,87.91,2.90879391]
[1771096733778,1.26807289,87.946,87.92,2.90879391]
[1771096734579,1.26807289,87.946,87.913,0.76020511]
[1771096734779,1.26807289,87.946,87.904,0.76662876]
[1771096735188,1.26807289,87.946,87.91,2.90879391]
[1771096735894,1.26807289,87.939,87.9,2.90879391]
[1771096736893,1.26807289,87.939,87.9,2.90125314]
[1771096737201,1.26807289,87.939,87.91,2.90125314]
[1771096737789,1.26807289,87.939,87.9,2.90125314]
[1771096738189,1.26807289,87.937,87.9,2.90125314]
[1771096738391,1.26807289,87.937,87.89,2.90125314]
[1771096738591,1.26807289,87.937,87.89,14.27911182]
[1771096738796,1.26807289,87.937,87.89,15.09530412]
[1771096739009,1.26807289,87.937,87.9,2.90125314]
[1771096740496,1.26807289,87.935,87.9,2.90125314]
[1771096742406,1.26807289,87.935,87.901,0.8647398]
[1771096742603,1.26807289,87.933,87.91,2.90125314]
[1771096743416,1.26807289,87.933,87.9,2.90125314]
[1771096743611,1.26807289,87.933,87.89,2.90125314]
[1771096743914,1.26807289,87.933,87.9,2.90125314]
[1771096744712,1.26807289,87.931,87.9,2.90125314]
[1771096744906,1.26807289,87.929,87.89,2.90125314]
[1771096745208,1.26807289,87.929,87.9,2.90125314]
[1771096745399,1.26807289,87.929,87.9,3.80095935]
[1771096745603,1.26807289,87.929,87.901,0.89970621]
[1771096746814,1.26807289,87.927,87.901,0.89970621]
[1771096746995,1.26807289,87.927,87.9,2.90125314]
[1771096749122,11.37320019,87.926,87.9,3.8457355]
[1771096749415,1.26807289,87.927,87.91,2.90125314]
[1771096749801,1.26807289,87.935,87.911,0.94448236]
[1771096752719,59.94548643,87.96,87.931,0.9855641]
[1771096752720,11.36957955,87.954,87.931,0.9855641]
[1771096753023,12.76321078,87.954,87.931,0.9855641]
[1771096753518,1.39363123,87.953,87.931,0.9855641]
[1771096754423,0.2,87.96,87.941,1.00289552]
[1771096755524,1.39363123,87.958,87.907,1.01142584]
[1771096755707,1.39363123,87.958,87.911,1.01142584]
[1771096755907,1.39363123,87.956,87.913,1.01142584]
[1771096757133,1.39363123,87.954,87.93,2.90125314]
[1771096757298,0.2,87.96,87.94,2.90125314]
[1771096757703,0.2,87.96,87.94,3.92943561]
[1771096757907,0.2,87.96,87.941,1.03640746]
[1771096758324,2.19063122,87.969,87.943,1.03640746]
[1771096758631,1.39363123,87.968,87.94,2.90125314]
[1771096759329,1.39363123,87.983,87.96,2.90125314]
[1771096760225,1.39518522,88.006,87.961,0.25618384]
[1771096760805,1.39518522,88.006,87.97,2.90125314]
[1771096761223,1.39518522,88.004,87.97,2.90125314]
[1771096761423,1.39518522,88.004,87.961,0.25618384]
[1771096761616,1.39518522,88.004,87.97,2.90125314]
[1771096762630,1.39518522,88.002,87.97,2.90125314]
[1771096763232,1.39518522,88.002,87.96,2.90125314]
[1771096764333,1.39518522,88.0,87.961,11.36867475]
[1771096765218,1.39518522,88.0,87.97,2.90125314]
[1771096765934,1.39518522,88.0,87.971,0.29789656]
[1771096766114,1.39518522,88.007,87.981,0.30595502]
[1771096766733,1.39518522,88.014,87.99,3.20720816]
[1771096767023,1.39518522,88.012,87.983,0.30595502]
[1771096768129,1.39518522,88.012,87.99,2.90125314]
[1771096769435,1.39518522,88.019,87.98,0.32956421]
[1771096769640,1.39518522,88.018,87.99,2.90125314]
[1771096770531,1.39518522,88.018,87.971,28.41839644]
[1771096770532,1.39518522,88.018,88.0,2.90125314]
[1771096771236,1.39518522,88.016,88.0,2.90125314]
[1771096771737,1.39518522,88.016,87.975,0.34488413]
[1771096771947,1.39518522,88.016,87.98,2.90125314]
[1771096772616,1.39518522,88.014,87.981,0.3524141]
[1771096772840,1.39518522,88.014,87.98,2.90125314]
[1771096774626,1.39518522,88.012,87.98,2.90125314]
[1771096776746,1.39518522,88.01,87.98,2.90125314]
[1771096777043,1.39518522,88.009,87.945,28.42674109]
[1771096777223,1.39518522,88.009,87.96,2.90125314]
[1771096777615,1.39518522,88.009,87.96,3.2900537]
[1771096777821,1.39518522,88.009,87.971,0.38880056]
[1771096778025,1.39518522,88.009,87.99,2.90125314]
[1771096778230,1.39518522,88.009,87.981,0.39583755]
[1771096778445,1.39518522,88.009,87.98,2.90125314]
[1771096778626,1.39518522,88.007,87.98,2.90125314]
[1771096780932,1.39518522,88.005,87.98,2.90125314]
[1771096782160,1.39518522,88.005,87.98,3.33106937]
[1771096782461,1.39518522,88.005,87.981,11.79590663]
[1771096782757,1.39518522,88.005,87.982,0.43638095]
[1771096783360,1.51701217,88.007,87.99,2.90125314]
[1771096783544,1.51701217,88.007,87.982,0.43638095]
[1771096783852,1.51701217,88.007,87.98,2.90125314]
[1771096784435,12.87987379,88.006,87.98,2.90125314]
[1771096784635,12.87987379,88.006,87.98,3.3505518]
[1771096784941,1.51701217,88.005,87.98,3.3505518]
[1771096785765,1.51701217,88.005,87.98,14.71673592]
[1771096786256,1.51701217,88.005,87.981,0.46191716]
[1771096787144,1.51701217,88.003,87.981,0.46191716]
[1771096787545,1.51701217,88.015,87.982,11.36596121]
[1771096787751,1.51701217,88.015,87.99,2.90125314]
[1771096789952,1.51701217,88.013,87.986,0.47423969]
[1771096790155,1.51701217,88.013,87.99,2.90125314]
[1771096791347,1.51701217,88.013,87.99,3.39346238]
[1771096791841,1.51701217,88.013,87.991,0.49220924]
[1771096792641,1.51701217,88.019,88.0,2.90125314]
[1771096795357,12.95243056,88.05,88.012,0.11521401]
[1771096795658,1.59518522,88.055,88.04,2.90125314]
[1771096796660,11.35656806,88.055,88.04,2.90125314]
[1771096796870,1.59518522,88.054,88.03,2.90125314]
[1771096797160,1.59518522,88.054,86.993,152.50837882]
[1771096797161,1.59518522,88.054,88.011,0.1268965]
[1771096797465,1.59518522,88.054,88.02,2.90125314]
[1771096797846,1.59518522,88.054,88.003,46.54]
[1771096797847,1.59518522,88.054,88.03,2.90125314]
[1771096798054,1.59518522,88.054,88.04,2.90125314]
[1771096798642,1.59518522,88.054,88.03,2.90125314]
[1771096798843,1.59518522,88.052,88.02,2.8930222]
[1771096799466,1.59518522,88.052,88.03,2.8930222]
[1771096801658,1.59518522,88.05,88.03,2.8930222]
[1771096802053,1.59518522,88.05,88.02,11.49939088]
[1771096802054,1.59518522,88.05,88.02,2.8930222]
[1771096802873,11.35650083,88.056,88.031,0.15499298]
[1771096803080,1.59518522,88.055,88.04,2.8930222]
[1771096803269,1.59518522,88.055,88.031,0.15499298]
[1771096803773,1.59518522,88.055,88.03,2.8930222]
[1771096806151,1.59518522,88.055,88.04,2.8930222]
[1771096806666,1.59518522,88.069,88.05,2.8930222]
[1771096806870,1.59518522,88.068,88.05,2.8930222]
[1771096807277,1.59518522,88.068,88.03,2.8930222]
[1771096808176,1.59518522,88.066,88.03,2.8930222]
[1771096808558,1.59518522,88.066,88.03,3.07962997]
[1771096808773,1.59518522,88.066,88.05,2.8930222]
[1771096810056,0.2,88.07,88.06,2.8930222]
[1771096810655,0.2,88.08,88.06,2.8930222]
[1771096810857,1.69352995,88.093,88.07,2.8930222]
[1771096811067,1.69352995,88.093,88.051,39.74969051]
[1771096811068,1.69352995,88.093,88.08,2.8930222]
[1771096811367,1.69352995,88.093,88.07,2.8930222]
[1771096811575,3.0930222,88.12,88.08,2.8930222]
[1771096811576,1.69352995,88.109,88.08,2.8930222]
[1771096811753,1.69352995,88.109,88.055,46.42]
[1771096811754,1.69352995,88.118,88.1,2.8930222]
[1771096812576,1.69352995,88.116,88.09,2.8930222]
[1771096812772,1.69352995,88.116,88.059,47.0]
[1771096812773,1.69352995,88.116,88.1,2.8930222]
[1771096813078,1.69352995,88.119,88.074,0.02001975]
[1771096813252,1.69352995,88.119,88.09,2.8930222]
[1771096813456,0.2,88.12,88.1,2.8930222]
[1771096813767,1.89352995,88.12,88.1,2.8930222]
[1771096813972,1.69352995,88.118,88.087,0.02001975]
[1771096814270,1.69352995,88.118,88.09,2.8930222]
[1771096814785,1.69352995,88.116,88.09,2.8930222]
[1771096814965,1.69352995,88.116,88.1,2.8930222]
[1771096815269,1.69352995,88.116,88.09,2.8930222]
[1771096816060,1.69352995,88.116,88.08,2.8930222]
[1771096816253,1.69352995,88.109,88.07,2.8930222]
[1771096816654,1.69352995,88.099,88.06,2.8930222]
[1771096817053,1.69352995,88.099,88.058,11.35614283]
[1771096817372,1.69352995,88.099,88.07,2.8930222]
[1771096818174,11.35099548,88.098,88.07,2.8930222]
[1771096818480,1.69352995,88.097,88.07,2.8930222]
[1771096819070,1.69352995,88.097,88.06,14.2925981]
[1771096819269,1.69352995,88.097,88.06,14.24882721]
[1771096820982,1.69352995,88.095,88.054,57.73665984]
[1771096821571,1.69352995,88.095,88.054,46.38]
[1771096822381,1.69352995,88.089,88.054,46.38]
[1771096822981,39.72938611,88.096,88.054,46.38]
[1771096822982,1.69352995,88.087,88.054,46.38]
[1771096824084,1.69352995,88.085,88.06,2.8930222]
[1771096824579,1.69352995,88.094,88.07,2.8930222]
[1771096824983,11.35073779,88.1,88.071,0.07053843]
[1771096825161,13.04426774,88.1,88.071,0.07053843]
[1771096825365,1.69352995,88.099,88.071,0.07053843]
[1771096827069,1.69352995,88.097,88.07,2.8930222]
[1771096830693,1.69352995,88.095,88.07,2.8930222]
[1771096831069,1.69352995,88.095,88.064,0.08320919]
[1771096831070,1.69352995,88.095,88.056,47.0]
[1771096831286,1.69352995,88.095,88.06,2.8930222]
[1771096831681,1.69352995,88.095,88.056,47.0]
[1771096832075,1.69352995,88.095,88.061,0.09946777]
[1771096832791,1.69352995,88.115,88.071,0.10341183]
[1771096832975,1.69352995,88.114,88.071,0.10341183]
[1771096833174,1.69352995,88.109,88.071,0.10341183]
[1771096833795,1.69352995,88.109,88.065,0.10730585]
[1771096833992,1.69352995,88.107,88.07,2.8930222]
[1771096834205,1.69352995,88.107,88.08,3.00420362]
[1771096834380,13.04271358,88.113,88.09,2.8930222]
[1771096834586,1.69352995,88.112,88.081,0.11118142]
[1771096834776,1.69352995,88.112,88.08,2.8930222]
[1771096834981,1.69352995,88.112,88.071,47.0]
[1771096835178,1.69352995,88.109,88.071,47.0]
[1771096835477,1.69352995,88.079,88.041,93.67500495]
[1771096835790,1.69352995,88.079,88.041,46.67500495]
[1771096836185,2.8930222,88.08,88.041,46.67500495]
[1771096836186,1.69352995,88.077,88.041,46.67500495]
[1771096836384,1.69352995,88.077,88.042,11.35821539]
[1771096838783,11.35383078,88.076,88.042,11.35821539]
[1771096838986,1.69352995,88.085,88.051,0.12617614]
[1771096839689,1.69352995,88.085,88.042,11.48802842]
[1771096839889,1.69352995,88.085,88.05,2.8930222]
[1771096840192,1.69352995,88.085,88.051,0.13341413]
[1771096840390,11.35264932,88.086,88.061,0.13341413]
[1771096840703,1.69352995,88.092,88.061,0.13341413]
[1771096840704,11.35202601,88.091,88.061,0.13341413]
[1771096840885,1.69352995,88.09,88.061,0.13341413]
[1771096841500,1.7465836,88.088,88.051,0.1404473]
[1771096841882,1.7465836,88.107,88.071,0.1404473]
[1771096842083,1.7465836,88.107,88.08,2.8930222]
[1771096843696,1.69352995,88.114,88.081,0.15071186]
[1771096845793,1.69352995,88.114,88.09,2.8930222]
[1771096846388,1.69352995,88.113,88.09,2.8930222]
[1771096847594,1.69352995,88.113,88.081,11.50389813]
[1771096849808,1.69352995,88.113,88.083,11.35292848]
[1771096850106,1.69352995,88.113,88.083,11.5262328]
[1771096850300,0.2,88.12,88.101,0.17330432]
[1771096850504,0.2,88.12,88.1,2.8930222]
[1771096850689,1.89352995,88.12,88.1,2.8930222]
[1771096851095,1.69352995,88.109,88.07,14.24762649]
[1771096851507,1.69352995,88.109,88.07,11.35460429]
[1771096851697,1.69352995,88.109,88.061,0.17640408]
[1771096851698,1.69352995,88.097,88.061,0.17640408]
[1771096851888,1.69352995,88.097,88.054,0.17640408]
[1771096853098,1.69352995,88.089,88.053,11.35679647]
[1771096853495,1.69352995,88.089,88.054,0.18247509]
[1771096853808,1.69352995,88.089,88.06,2.8930222]
[1771096854193,1.69352995,88.087,88.055,11.5420226]
[1771096854610,1.69352995,88.087,88.061,0.18548408]
[1771096854793,1.69352995,88.094,88.061,0.18548408]
[1771096856207,1.69352995,88.092,88.055,46.56]
[1771096856408,1.69352995,88.069,88.029,0.19136094]
[1771096856704,1.69352995,88.069,88.02,3.08438314]
[1771096856905,1.69352995,88.059,88.018,46.32]
[1771096857713,1.69352995,88.039,88.001,11.36350723]
[1771096858213,1.69352995,88.039,88.001,39.96940825]
[1771096858611,1.69352995,88.037,88.001,11.36350723]
[1771096859809,1.69352995,88.037,88.002,0.199947]
[1771096860904,1.69352995,88.037,88.001,11.36350723]
[1771096861215,1.69352995,88.029,87.992,11.36457171]
[1771096861413,1.69352995,88.029,87.968,4.61729252]
[1771096861414,1.69352995,88.009,87.971,11.36738243]
[1771096861612,11.3589895,88.036,87.981,1.64147809]
[1771096861804,11.3589895,88.036,88.003,1.64147809]
[1771096863315,11.35769938,88.046,88.01,2.89472186]
[1771096863722,1.60782613,88.045,88.002,11.3633781]
[1771096863901,1.60782613,88.039,88.002,11.3633781]
[1771096864419,1.60782613,88.039,88.003,1.64147809]
[1771096864800,11.35873145,88.038,88.002,11.3633781]
[1771096865005,1.60782613,88.037,88.002,11.3633781]
[1771096865210,1.60782613,88.05,88.011,1.64147809]
[1771096865417,1.60782613,88.05,88.021,1.64147809]
[1771096865615,1.60782613,88.05,88.02,2.89472186]
[1771096865922,1.60782613,88.05,88.013,1.64147809]
[1771096866420,11.3573124,88.049,88.01,14.2569629]
[1771096866621,1.60782613,88.048,88.01,14.2569629]
[1771096867209,1.60782613,88.048,88.011,1.64147809]
[1771096867409,1.60782613,88.048,88.021,1.64147809]
[1771096867815,11.35674002,88.054,88.021,1.64147809]
[1771096868027,1.60782613,88.053,88.021,1.64147809]
[1771096869533,11.35692545,88.052,88.021,1.64147809]
[1771096870735,12.96475158,88.052,88.021,1.64147809]
[1771096871136,1.60782613,88.051,88.021,1.64147809]
[1771096872853,1.60782613,88.051,88.03,2.89472186]
[1771096874030,1.68988755,88.049,88.02,49.89472186]
[1771096874408,1.68988755,88.049,88.02,47.0]
[1771096875118,1.68988755,88.047,88.02,47.0]
[1771096875422,1.68988755,88.047,88.003,46.66]
[1771096875635,1.68988755,88.039,88.003,46.66]
[1771096876844,1.68988755,88.039,88.004,11.36311985]
[1771096877948,11.35873145,88.038,88.004,11.36311985]
[1771096878123,1.68988755,88.037,88.004,11.36311985]
[1771096879244,11.3589895,88.036,88.004,11.36311985]
[1771096879432,1.68988755,88.035,88.004,11.36311985]
[1771096881647,1.68988755,88.029,87.99,2.89472186]
[1771096882036,1.68988755,88.029,87.991,1.60877439]
[1771096882637,1.68988755,88.029,88.001,1.60877439]
[1771096883539,59.74,88.055,87.982,1.60877439]
[1771096883540,1.68988755,88.027,87.982,1.60877439]
[1771096884449,1.68988755,88.019,87.982,1.60877439]
[1771096884651,1.68988755,88.019,87.981,46.82]
[1771096884850,1.68988755,88.009,87.975,1.60877439]
[1771096885347,1.68988755,88.009,87.968,1.60877439]
[1771096885649,1.68988755,88.007,87.968,12.97654448]
[1771096885833,1.68988755,88.007,87.98,2.89472186]
[1771096886853,1.68988755,88.007,87.978,1.60877439]
[1771096887550,1.68988755,88.005,87.978,1.60877439]
[1771096887955,1.68988755,88.005,87.978,12.97521797]
[1771096888140,1.68988755,88.005,87.979,1.60877439]
[1771096889747,1.68988755,88.003,87.972,1.60877439]
[1771096892348,11.3633781,88.002,87.972,1.60877439]
[1771096892546,1.68988755,87.999,87.967,46.88]
[1771096893755,1.68988755,87.997,87.967,46.88]
[1771096895649,1.68988755,87.995,87.967,46.88]
[1771096895858,1.68988755,88.002,87.971,1.60877439]
[1771096897263,1.68988755,88.002,87.967,46.88]
[1771096897468,1.68988755,87.999,87.967,46.88]
[1771096897641,1.68988755,87.999,87.96,0.2]
[1771096897839,1.68988755,87.997,87.96,0.2]
[1771096898142,39.77363121,87.998,87.96,0.2]
[1771096898143,1.68988755,87.989,87.96,0.2]
[1771096903358,1.63860506,87.987,87.96,0.2]
[1771096905172,1.63860506,87.985,87.96,0.2]
[1771096906244,1.63860506,87.979,87.94,0.2]
[1771096906745,1.63860506,87.979,87.94,1.75827759]
[1771096907349,1.63860506,87.977,87.94,1.75827759]
[1771096908765,1.63860506,87.975,87.94,1.75827759]
[1771096910670,1.63860506,87.975,87.942,1.55827759]
[1771096910846,1.63860506,87.981,87.944,1.55827759]
[1771096914277,11.36621959,87.98,87.944,1.55827759]
[1771096914561,1.63860506,87.979,87.944,1.55827759]
[1771096918048,1.63860506,87.977,87.944,1.55827759]
[1771096920874,11.36673638,87.976,87.944,1.55827759]
[1771096921167,1.63860506,87.975,87.944,1.55827759]
[1771096921365,1.63860506,87.975,87.93,28.63152713]
[1771096921366,1.63860506,87.975,87.93,1.75827759]
[1771096921549,1.63860506,87.959,87.93,0.2]
[1771096921749,1.63860506,87.949,87.93,0.2]
[1771096921960,1.63860506,87.949,87.91,3.09834021]
[1771096921961,1.63860506,87.939,87.91,1.75827759]
[1771096922151,1.63860506,87.939,87.91,0.2]
[1771096922752,1.63860506,87.948,87.911,1.55827759]
[1771096923246,1.63860506,87.946,87.912,1.55827759]
[1771096923969,54.18,87.964,87.931,1.55827759]
[1771096923970,1.63860506,87.953,87.931,1.55827759]
[1771096924161,11.3693921,87.956,87.931,1.55827759]
[1771096924474,1.63860506,87.939,87.91,0.2]
[1771096925258,1.63860506,87.939,87.912,1.55827759]
[1771096925457,1.63860506,87.937,87.912,1.55827759]
[1771096927064,1.63860506,87.937,87.913,1.55827759]
[1771096927669,1.63860506,87.936,87.913,1.55827759]
[1771096928676,1.63860506,87.936,87.91,3.09834021]
[1771096929177,1.63860506,87.936,87.911,1.55827759]
[1771096929474,1.63860506,87.936,87.912,1.55827759]
[1771096930273,1.63860506,87.934,87.91,3.09834021]
[1771096930477,1.63860506,87.929,87.882,12.93714832]
[1771096930676,1.63860506,87.919,87.88,0.1]
[1771096931055,1.63860506,87.909,87.88,0.1]
[1771096931470,1.63860506,87.899,87.88,0.1]
[1771096931868,1.63860506,87.899,87.868,46.84]
[1771096932375,1.63860506,87.899,87.861,1.55827759]
[1771096932571,1.63860506,87.899,87.863,12.9396156]
[1771096932572,1.63860506,87.898,87.863,12.9396156]
[1771096932771,1.63860506,87.898,87.864,1.55827759]
[1771096934076,1.48717512,87.906,87.871,1.454326]
[1771096934562,1.48717512,87.904,87.871,1.454326]
[1771096935788,1.48717512,87.904,87.873,1.454326]
[1771096936960,1.48717512,87.928,87.891,1.454326]
[1771096938488,1.48717512,87.927,87.891,1.454326]
[1771096939310,1.48717512,87.909,87.876,47.0]
[1771096939588,1.48717512,87.909,87.87,4.35266621]
[1771096939798,1.48717512,87.899,87.86,2.89834021]
[1771096940488,4.61729252,87.924,87.851,1.454326]
[1771096940489,1.48717512,87.897,87.851,1.454326]
[1771096940690,1.48717512,87.897,87.87,2.89834021]
[1771096940997,1.48717512,87.897,87.864,1.454326]
[1771096941661,1.48717512,87.897,87.871,1.454326]
[1771096941901,9.9781544,87.927,87.861,11.38161414]
[1771096941902,1.48717512,87.911,87.89,2.89834021]
[1771096942194,1.48717512,87.911,87.881,1.454326]
[1771096944192,11.37527016,87.91,87.881,1.454326]
[1771096944396,1.48717512,87.909,87.881,1.454326]
[1771096945799,1.48717512,87.909,87.89,2.89834021]
[1771096946197,1.48717512,87.909,87.887,1.454326]
[1771096946385,1.48717512,87.909,87.881,1.454326]
[1771096947693,1.48717512,87.909,87.89,2.89834021]
[1771096948002,12.86270408,87.908,87.882,1.454326]
[1771096948199,1.48717512,87.907,87.882,1.454326]
[1771096948703,1.48717512,87.899,87.862,46.82]
[1771096949086,1.48717512,87.899,87.863,1.454326]
[1771096949285,1.48717512,87.899,87.862,46.82]
[1771096949286,1.48717512,87.899,87.87,4.35266621]
[1771096949592,1.48717512,87.899,87.863,1.454326]
[1771096950510,1.48717512,87.897,87.862,46.82]
[1771096950894,2.89834021,87.89,87.857,1.454326]
[1771096951088,1.48717512,87.889,87.857,1.454326]
[1771096951288,1.48717512,87.889,87.85,13.03723689]
[1771096951588,1.48717512,87.889,87.851,1.454326]
[1771096953211,1.48717512,87.889,87.852,11.38278013]
[1771096953708,1.48717512,87.887,87.853,1.454326]
[1771096954792,1.48717512,87.887,87.851,1.454326]
[1771096956008,1.48717512,87.885,87.851,1.454326]
[1771096957113,1.48717512,87.903,87.871,1.454326]
[1771096957296,1.48717512,87.902,87.88,2.89834021]
[1771096959408,1.48717512,87.918,87.891,1.454326]
[1771096959798,1.48717512,87.918,87.875,1.454326]
[1771096959997,1.48717512,87.918,87.881,1.454326]
[1771096960504,1.48717512,87.916,87.881,1.454326]
[1771096961514,1.48288091,87.914,87.881,1.454326]
[1771096961719,1.48288091,87.909,87.871,1.50095095]
[1771096962016,39.81118124,87.915,87.854,1.50095095]
[1771096962017,2.89834021,87.89,87.854,1.50095095]
[1771096962216,2.89834021,87.89,87.85,0.2]
[1771096962217,1.48288091,87.879,87.85,0.2]
[1771096962724,1.48288091,87.869,87.85,0.2]
[1771096964222,1.3667401,87.859,87.816,1.49351293]
[1771096964523,1.3667401,87.849,87.816,1.49351293]
[1771096964937,1.3667401,87.849,87.81,0.1]
[1771096966222,1.3667401,87.849,87.811,1.49351293]
[1771096966428,1.3667401,87.847,87.811,1.49351293]
[1771096966809,1.3667401,87.847,87.813,1.49351293]
[1771096967226,1.3667401,87.853,87.821,1.49351293]
[1771096968117,11.38144383,87.863,87.831,1.49351293]
[1771096968333,1.3667401,87.862,87.831,1.49351293]
[1771096969419,1.3667401,87.86,87.831,1.49351293]
[1771096969626,11.38161414,87.861,87.81,2.99834021]
[1771096969627,1.3667401,87.849,87.81,2.99834021]
[1771096969825,1.3667401,87.849,87.81,0.1]
[1771096970340,1.3667401,87.839,87.81,0.1]
[1771096970539,1.3667401,87.829,87.81,0.1]
[1771096973862,1.3667401,87.856,87.811,1.49351293]
[1771096974025,1.3667401,87.849,87.811,1.49351293]
[1771096974232,39.83746314,87.857,87.81,2.99834021]
[1771096974233,1.3667401,87.839,87.81,0.1]
[1771096974735,1.3667401,87.848,87.811,1.49351293]
[1771096975546,1.3667401,87.856,87.821,1.49351293]
[1771096976832,11.38239144,87.855,87.821,1.49351293]
[1771096977034,1.3667401,87.854,87.821,1.49351293]
[1771096977445,1.3667401,87.854,87.822,1.49351293]
[1771096978032,1.3667401,87.854,87.831,1.49351293]
[1771096979133,12.74847512,87.861,87.831,1.49351293]
[1771096979628,1.3667401,87.86,87.831,1.49351293]
[1771096980652,11.38187322,87.859,87.831,1.49351293]
[1771096981053,1.3667401,87.874,87.84,7.26621231]
[1771096981255,1.3667401,87.874,87.841,1.49351293]
[1771096981638,1.3667401,87.874,87.85,7.26621231]
[1771096981956,1.3667401,87.874,87.851,1.49351293]
[1771096982343,12.74613875,87.879,87.851,1.49351293]
[1771096983045,1.3667401,87.878,87.851,1.49351293]
[1771096984555,11.37872109,87.884,87.86,8.754736]
[1771096984857,1.3667401,87.883,87.851,1.49351293]
[1771096985357,4.61729252,87.897,87.87,7.26122307]
[1771096985548,7.26122307,87.91,87.862,1.49351293]
[1771096985549,1.3667401,87.901,87.862,1.49351293]